bitfinex/quotes_SOLUSD_20251001
["timestamp","ask_amount","ask_price","bid_price","bid_amount"]
[1759291524878,14.02207872,207.68,207.64,72.32]
[1759291525079,0.72,207.67,207.64,72.32]
[1759291525381,0.72,207.66,207.64,72.32]
[1759291526080,0.72,207.65,207.64,37.54]
[1759291526257,0.72,207.65,207.64,72.32]
[1759291526581,0.72,207.75,207.67,20.8]
[1759291526885,24.06179213,207.8,207.68,34.78]
[1759291526886,4.81394117,207.73,207.68,34.78]
[1759291527087,0.2,207.74,207.71,20.8]
[1759291527265,0.1,207.85,207.69,0.72]
[1759291527266,0.1,207.85,207.75,20.8]
[1759291527466,0.1,207.85,207.79,20.8]
[1759291527704,0.1,207.93,207.83,20.8]
[1759291527992,0.1,207.93,207.87,20.8]
[1759291528187,6.72979749,208.09,207.92,13.59559401]
[1759291528359,4.80565674,208.09,207.96,20.8]
[1759291528559,4.80565674,208.09,207.97,0.72]
[1759291528761,28.99017363,208.27,208.01,20.8]
[1759291528762,0.72,208.13,208.01,20.8]
[1759291528991,0.72,208.13,208.02,36.04]
[1759291529202,0.72,208.22,208.06,20.8]
[1759291529498,0.72,208.22,208.03,37.54]
[1759291529499,0.72,208.21,208.07,57.06]
[1759291529792,16.80430189,208.28,208.11,20.8]
[1759291529982,0.72,208.26,208.15,20.8]
[1759291530190,0.72,208.25,208.15,20.8]
[1759291530496,4.80122911,208.28,208.19,20.8]
[1759291530702,4.80122911,208.28,208.2,36.42]
[1759291530993,4.80122911,208.28,208.17,37.52]
[1759291530994,6.20192051,208.27,208.21,35.82]
[1759291531195,13.87991715,208.23,208.17,37.52]
[1759291531402,0.72,208.22,208.18,35.82]
[1759291531692,0.72,208.22,208.03,37.54]
[1759291531693,0.14216157,208.2,208.09,0.72]
[1759291531915,0.14216157,208.18,208.09,0.72]
[1759291532888,0.28432314,208.15,208.1,35.82]
[1759291533064,1.00432314,208.15,208.1,35.82]
[1759291533266,1.00432314,208.15,208.11,35.8]
[1759291533585,1.00432314,208.15,208.08,58.32]
[1759291533886,0.28432314,208.13,208.09,73.28]
[1759291534090,0.14216157,208.12,208.09,37.5]
[1759291534666,0.86216157,208.12,208.09,37.5]
[1759291534884,0.42648471,208.1,208.04,20.8]
[1759291535087,0.42648471,208.1,208.05,37.5]
[1759291535284,0.42648471,208.1,208.06,35.76]
[1759291535490,0.14216157,208.08,208.05,37.5]
[1759291535661,0.14216157,208.08,207.98,0.72]
[1759291535662,0.28432314,208.05,207.98,0.72]
[1759291535866,0.28432314,208.05,207.98,21.52]
[1759291536289,40.84378453,208.11,207.92,1.92367807]
[1759291536461,14.02207872,208.1,207.99,0.72]
[1759291536973,0.42648471,208.08,208.0,35.76]
[1759291537181,0.42648471,208.08,208.01,0.72]
[1759291537378,0.42648471,208.08,208.0,35.76]
[1759291537582,1.14648471,208.08,208.0,35.76]
[1759291537885,0.42648471,208.06,208.01,35.74]
[1759291538190,1.14648471,208.06,208.01,35.74]
[1759291538385,16.81964533,208.09,208.02,0.72]
[1759291538773,0.14216157,208.08,208.02,0.72]
[1759291538965,0.42648471,208.06,208.01,35.74]
[1759291539170,1.14648471,208.06,208.01,35.74]
[1759291539370,0.42648471,208.06,208.01,35.74]
[1759291539674,0.42648471,208.06,208.01,36.46]
[1759291539987,16.82126206,208.07,208.02,38.2]
[1759291540181,16.82126206,208.07,208.03,0.72]
[1759291540369,16.82126206,208.07,208.04,0.72]
[1759291540563,16.82126206,208.07,208.05,0.72]
[1759291540765,16.82126206,208.07,208.06,35.72]
[1759291540984,12.01518719,208.07,208.06,35.72]
[1759291541883,12.01518719,208.07,208.02,37.48]
[1759291542585,12.01518719,208.07,208.02,38.2]
[1759291543302,12.01518719,208.07,208.03,35.68]
[1759291543706,1.00432314,208.06,208.03,35.68]
[1759291543876,1.00432314,208.06,208.02,37.48]
[1759291544073,12.01518719,208.07,208.02,37.48]
[1759291544276,12.01518719,208.07,208.03,0.72]
[1759291544497,12.01518719,208.07,208.02,58.28]
[1759291544991,12.01518719,208.07,208.03,0.72]
[1759291545192,12.01518719,208.07,208.04,0.72]
[1759291545600,28.83367772,208.09,208.05,35.64]
[1759291547702,4.80561295,208.09,208.06,0.72]
[1759291547883,4.80561295,208.09,208.08,20.8]
[1759291548686,4.80561295,208.09,208.07,0.72]
[1759291548903,4.80561295,208.09,208.03,0.72]
[1759291549205,1.00432314,208.08,208.02,37.48]
[1759291549701,0.14216157,208.04,208.03,37.48]
[1759291549888,0.28432314,208.04,207.97,0.72]
[1759291550498,0.28432314,208.04,207.98,35.68]
[1759291551800,16.82449646,208.03,207.98,35.68]
[1759291552005,16.82449646,208.03,207.99,0.72]
[1759291552378,16.82449646,208.03,207.9,14.46]
[1759291552379,18.5042957,208.02,207.85,28.05559401]
[1759291552603,0.42648471,208.0,207.86,35.74]
[1759291552795,0.42648471,208.0,207.89,20.8]
[1759291553000,0.28432314,207.97,207.85,14.43105563]
[1759291553198,0.28432314,207.94,207.86,35.72]
[1759291553514,0.28432314,207.94,207.87,35.72]
[1759291554220,4.80931082,207.93,207.9,20.8]
[1759291554424,16.83258788,207.93,207.91,35.7]
[1759291556014,17.51258788,207.93,207.86,20.8]
[1759291556518,17.51258788,207.93,207.88,20.8]
[1759291557222,17.51258788,207.93,207.85,14.67289645]
[1759291557223,0.96432314,207.92,207.83,13.73775558]
[1759291557391,0.96432314,207.92,207.84,35.66]
[1759291557589,0.96432314,207.92,207.85,35.66]
[1759291557990,1.10648471,207.91,207.86,35.66]
[1759291558225,0.28432314,207.89,207.86,35.66]
[1759291558426,0.96432314,207.89,207.86,35.66]
[1759291558734,0.28432314,207.89,207.86,35.66]
[1759291559436,0.96432314,207.89,207.86,35.66]
[1759291559809,0.28432314,207.89,207.87,37.48]
[1759291560540,12.02361498,207.93,207.88,0.02]
[1759291560716,4.80954213,207.92,207.9,20.8]
[1759291560906,4.80954213,207.92,207.91,35.62]
[1759291562507,4.80931082,207.93,207.87,37.48]
[1759291562719,4.80931082,207.93,207.88,35.62]
[1759291562720,0.28432314,207.92,207.88,35.62]
[1759291562906,17.51258788,207.93,207.88,35.62]
[1759291563108,16.83258788,207.93,207.88,35.62]
[1759291563812,0.68,207.92,207.88,35.62]
[1759291564506,16.83420709,207.91,207.88,35.62]
[1759291564927,0.96432314,207.9,207.8,37.48]
[1759291565108,0.68,207.89,207.81,35.58]
[1759291565530,0.42648471,207.9,207.81,35.58]
[1759291565733,1.10648471,207.9,207.82,0.02]
[1759291565938,16.83420709,207.91,207.84,20.8]
[1759291566123,16.83420709,207.91,207.85,35.58]
[1759291567020,12.02443364,207.91,207.85,35.58]
[1759291568343,4.80917916,207.94,207.88,20.8]
[1759291568542,4.80917916,207.94,207.92,20.8]
[1759291568726,4.80917916,207.94,207.93,35.56]
[1759291569043,15.78665062,208.07,207.93,35.56]
[1759291569251,0.68,208.03,207.93,35.58]
[1759291569547,0.68,208.03,207.96,20.8]
[1759291569748,0.14216157,208.03,207.97,35.56]
[1759291569920,0.68,208.02,207.98,35.56]
[1759291570244,0.68,208.04,207.98,35.56]
[1759291570812,0.82216157,208.04,207.98,35.56]
[1759291571014,0.96432314,208.04,207.98,35.56]
[1759291571327,16.82449646,208.03,207.98,35.56]
[1759291571535,17.50449646,208.03,207.98,35.56]
[1759291571918,16.82449646,208.03,207.98,35.56]
[1759291572128,17.50449646,208.03,207.98,35.56]
[1759291572530,0.96432314,208.02,207.97,37.5]
[1759291572712,0.68,208.01,207.98,35.6]
[1759291572910,0.68,208.0,207.98,35.6]
[1759291574952,4.80792345,207.99,207.98,35.6]
[1759291577036,16.82633655,208.01,207.98,35.6]
[1759291577222,17.50633655,208.01,207.98,35.6]
[1759291578132,16.82633655,208.01,207.98,35.6]
[1759291578342,17.51633655,208.01,207.98,35.6]
[1759291579243,0.97432314,208.0,207.97,37.5]
[1759291579848,0.69,207.99,207.97,37.5]
[1759291580443,16.82633655,208.01,207.98,35.42]
[1759291580940,16.82633655,208.01,207.97,37.5]
[1759291581138,0.14216157,208.06,207.97,37.5]
[1759291581139,0.14216157,208.06,207.98,35.44]
[1759291581340,3.99902944,208.25,207.98,56.24]
[1759291581532,0.69,208.16,208.01,20.8]
[1759291581729,0.69,208.15,208.05,20.8]
[1759291581935,0.69,208.14,208.09,20.8]
[1759291582249,0.69,208.14,208.03,0.02]
[1759291582250,0.69,208.13,208.03,0.02]
[1759291582737,0.42648471,208.11,207.97,41.44069891]
[1759291582943,1.11648471,208.11,208.01,20.8]
[1759291583324,16.81883708,208.1,208.02,35.52]
[1759291583520,16.81883708,208.1,208.05,20.8]
[1759291583743,4.80492023,208.12,208.06,35.54]
[1759291584051,4.80492023,208.12,208.1,20.8]
[1759291584249,4.80492023,208.12,208.11,35.52]
[1759291585452,12.01132675,208.14,208.11,35.52]
[1759291586628,12.01132675,208.14,208.12,35.48]
[1759291586834,0.69,208.13,208.08,20.8]
[1759291587038,0.69,208.13,208.09,35.48]
[1759291587447,17.50722082,208.12,208.04,0.02]
[1759291587643,0.28432314,208.11,208.01,0.02]
[1759291587836,0.69,208.1,208.02,35.48]
[1759291588035,0.28432314,208.11,208.02,35.48]
[1759291588238,0.69,208.1,208.02,35.48]
[1759291588439,0.69,208.09,208.0,20.8]
[1759291588650,13.87991715,208.11,208.01,35.46]
[1759291588651,0.69,208.08,208.01,35.46]
[1759291588847,0.69,208.08,208.02,35.46]
[1759291589549,4.80607487,208.07,208.0,20.8]
[1759291589751,16.82126206,208.07,207.99,0.02]
[1759291590030,16.82126206,208.07,208.01,72.92]
[1759291590248,16.82126206,208.07,208.01,72.94]
[1759291590641,16.82126206,208.07,208.02,35.44]
[1759291590856,16.82126206,208.07,208.01,37.5]
[1759291591058,16.82126206,208.07,208.03,35.42]
[1759291591636,0.28432314,208.09,208.03,35.42]
[1759291593762,16.82045366,208.08,208.03,35.42]
[1759291594463,0.69,208.07,208.03,35.42]
[1759291594841,0.69,208.07,208.01,37.48]
[1759291595160,16.82045366,208.08,208.04,35.36]
[1759291595357,0.69,208.07,208.04,35.36]
[1759291595555,16.82045366,208.08,208.04,35.36]
[1759291595858,40.84967319,208.08,208.01,37.48]
[1759291596055,0.69,208.07,208.02,35.34]
[1759291596261,40.84967319,208.08,208.02,35.34]
[1759291597241,40.84967319,208.08,208.05,20.8]
[1759291597242,4.8058439,208.08,208.05,20.8]
[1759291597549,4.8058439,208.08,208.06,35.32]
[1759291597951,12.01364707,208.1,208.06,35.32]
[1759291599340,12.01364707,208.1,208.06,0.02]
[1759291599536,12.01364707,208.1,208.07,35.3]
[1759291600368,4.80492023,208.12,208.08,0.02]
[1759291600665,4.80492023,208.12,208.1,20.8]
[1759291600868,4.80492023,208.12,208.11,35.28]
[1759291602172,12.0121625,208.13,208.11,35.28]
[1759291603756,0.69,208.12,208.05,20.82]
[1759291603944,12.0121625,208.13,208.09,20.8]
[1759291604149,12.7021625,208.13,208.1,35.22]
[1759291604350,17.50685187,208.13,208.1,35.22]
[1759291604552,0.69,208.12,208.1,35.22]
[1759291604850,0.69,208.12,208.11,35.22]
[1759291606570,5.49492023,208.12,208.11,35.22]
[1759291607446,5.49492023,208.12,208.04,20.8]
[1759291607447,41.53182201,208.12,208.04,20.8]
[1759291607750,0.69,208.11,208.04,20.8]
[1759291607949,0.69,208.1,208.04,20.8]
[1759291608643,16.81964533,208.09,208.04,20.8]
[1759291608971,0.69,208.08,208.05,35.16]
[1759291610277,4.80607487,208.07,208.05,35.16]
[1759291610571,0.69,208.06,208.01,37.48]
[1759291610774,16.82126206,208.07,208.02,35.12]
[1759291611069,16.82126206,208.07,208.03,35.12]
[1759291611070,17.51126206,208.07,208.03,35.12]
[1759291611572,0.69,208.06,208.03,35.12]
[1759291611975,0.69,208.05,208.01,37.48]
[1759291612158,40.85163645,208.07,207.98,37.48]
[1759291612159,16.82449646,208.03,207.98,37.48]
[1759291612472,0.69,208.02,207.97,16.64962132]
[1759291612767,16.82449646,208.03,207.92,24.74069891]
[1759291612952,17.51449646,208.03,207.94,0.02]
[1759291613471,41.54949141,208.03,207.95,35.12]
[1759291613675,0.72,208.02,207.95,35.12]
[1759291614250,16.82611411,208.01,207.95,35.14]
[1759291614774,16.82611411,208.01,207.96,35.1]
[1759291615259,0.72,208.0,207.96,35.1]
[1759291616468,0.72,208.02,207.96,35.1]
[1759291617776,0.72,208.01,207.93,0.02]
[1759291618083,21.52,208.01,207.94,35.04]
[1759291618495,16.82692306,208.0,207.94,35.04]
[1759291618678,0.72,207.99,207.94,35.04]
[1759291618993,0.72,207.98,207.91,0.02]
[1759291619195,0.72,207.98,207.92,35.04]
[1759291619687,40.86538459,208.0,207.92,35.04]
[1759291619895,0.72,207.99,207.93,37.48]
[1759291620490,40.86538459,208.0,207.93,37.5]
[1759291621095,4.8076923,208.0,207.94,0.02]
[1759291621470,4.8076923,208.0,207.95,35.06]
[1759291621670,4.80723007,208.02,207.96,0.02]
[1759291621887,4.80723007,208.02,207.98,20.8]
[1759291622086,4.80723007,208.02,207.99,35.08]
[1759291622792,12.01757037,208.03,207.99,35.08]
[1759291623292,0.72,208.02,207.99,35.06]
[1759291624086,0.72,208.01,207.94,14.44396552]
[1759291624270,0.72,208.01,207.93,41.42069891]
[1759291624474,0.72,208.0,207.95,35.02]
[1759291624688,16.82611411,208.01,207.95,35.02]
[1759291625272,0.72,208.0,207.95,35.02]
[1759291625585,0.72,207.99,207.96,35.04]
[1759291625771,0.72,207.98,207.96,35.04]
[1759291626093,1.00432314,208.0,207.96,35.04]
[1759291626288,0.72,207.99,207.96,35.04]
[1759291626477,0.28432314,208.0,207.93,37.48]
[1759291626478,0.72,207.98,207.93,37.48]
[1759291626679,0.72,207.97,207.94,35.02]
[1759291626982,0.72,207.96,207.94,35.02]
[1759291628574,0.72,207.96,207.93,37.48]
[1759291628776,4.80884828,207.95,207.94,35.02]
[1759291629391,5.52884828,207.95,207.93,37.48]
[1759291629582,4.80884828,207.95,207.93,37.48]
[1759291630577,4.80884828,207.95,207.94,34.98]
[1759291630895,16.83040099,207.96,207.94,34.98]
[1759291631094,0.72,207.95,207.94,34.98]
[1759291632180,0.72,207.95,207.89,37.48]
[1759291632383,0.72,207.95,207.87,97.8]
[1759291632384,0.72,207.94,207.9,72.42]
[1759291632574,16.83040099,207.96,207.9,72.42]
[1759291632575,17.55040099,207.96,207.9,72.44]
[1759291633675,17.55040099,207.96,207.9,72.42]
[1759291634076,16.83040099,207.96,207.9,72.42]
[1759291634277,1.00432314,207.95,207.9,37.48]
[1759291634520,0.72,207.94,207.91,34.94]
[1759291634682,0.72,207.93,207.91,34.94]
[1759291634880,0.72,207.92,207.91,34.94]
[1759291635683,5.52954213,207.92,207.91,34.94]
[1759291640782,5.52954213,207.92,207.91,34.92]
[1759291641196,5.52954213,207.92,207.9,37.48]
[1759291641398,5.52954213,207.92,207.91,34.92]
[1759291642005,4.80954213,207.92,207.91,34.92]
[1759291642401,5.48954213,207.92,207.91,34.92]
[1759291642906,4.80954213,207.92,207.91,34.92]
[1759291643209,4.80931082,207.93,207.91,34.92]
[1759291643406,5.49931082,207.93,207.91,34.92]
[1759291643596,4.80931082,207.93,207.91,34.92]
[1759291643797,0.69,207.92,207.91,34.92]
[1759291644206,16.83202388,207.94,207.91,34.92]
[1759291644408,0.69,207.93,207.91,34.92]
[1759291646011,4.80954213,207.92,207.91,34.92]
[1759291646726,5.49954213,207.92,207.91,34.92]
[1759291647805,4.80954213,207.92,207.91,34.92]
[1759291649331,17.52339745,207.92,207.91,72.42]
[1759291649828,17.52339745,207.92,207.87,14.29504616]
[1759291650007,0.69,207.91,207.85,77.0]
[1759291651026,0.69,207.91,207.86,34.92]
[1759291651398,16.83501683,207.9,207.86,34.92]
[1759291652310,16.83501683,207.9,207.85,77.0]
[1759291652515,16.83501683,207.9,207.86,34.92]
[1759291652934,4.81000481,207.9,207.87,0.02]
[1759291653119,4.81000481,207.9,207.88,34.92]
[1759291653296,4.81000481,207.9,207.89,0.02]
[1759291653823,4.81000481,207.9,207.88,34.92]
[1759291654026,4.81000481,207.9,207.89,34.92]
[1759291654205,16.83501683,207.9,207.89,34.92]
[1759291654516,17.52501683,207.9,207.8,0.02]
[1759291654719,0.69,207.89,207.8,20.82]
[1759291655020,0.69,207.88,207.81,0.02]
[1759291655411,0.69,207.88,207.79,24.84285377]
[1759291655608,0.69,207.87,207.79,0.02]
[1759291655816,0.69,207.87,207.8,34.92]
[1759291656226,0.69,207.87,207.8,34.94]
[1759291656614,16.83825651,207.86,207.8,34.94]
[1759291656817,16.83825651,207.86,207.8,49.02899296]
[1759291658831,16.83825651,207.86,207.8,14.10899296]
[1759291659037,16.83825651,207.86,207.81,34.92]
[1759291659223,17.52825651,207.86,207.81,34.92]
[1759291659428,0.69,207.85,207.81,34.92]
[1759291659816,16.83987681,207.84,207.82,37.5]
[1759291662024,12.02848344,207.84,207.82,37.5]
[1759291662618,12.02848344,207.84,207.83,0.02]
[1759291662842,12.02848344,207.84,207.82,37.5]
[1759291663541,12.02848344,207.84,207.83,34.92]
[1759291664739,12.02848344,207.84,207.82,37.5]
[1759291664949,12.02848344,207.84,207.83,34.92]
[1759291665647,4.81093043,207.86,207.83,34.92]
[1759291666219,5.50071737,207.87,207.83,34.92]
[1759291666426,4.81071737,207.87,207.84,0.02]
[1759291666622,0.69,207.92,207.85,34.94]
[1759291666921,0.69,207.92,207.85,34.92]
[1759291666922,0.69,207.91,207.85,34.92]
[1759291667843,20.8,207.92,207.85,34.92]
[1759291668024,0.69,207.9,207.86,34.92]
[1759291668225,16.83663651,207.88,207.82,37.5]
[1759291668427,0.69,207.87,207.83,34.92]
[1759291669341,16.83825651,207.86,207.83,34.92]
[1759291669548,17.52825651,207.86,207.83,34.92]
[1759291669747,16.83825651,207.86,207.83,34.92]
[1759291671124,12.02732608,207.86,207.83,34.92]
[1759291671640,12.71732608,207.86,207.83,34.92]
[1759291672540,0.69,208.06,207.87,28.93]
[1759291672729,24.02205514,208.15,207.87,28.93]
[1759291672730,0.69,208.12,208.03,20.8]
[1759291672932,17.50589561,208.14,208.04,101.68688411]
[1759291673131,16.81589561,208.14,208.05,63.55559401]
[1759291673559,4.80445853,208.14,208.06,1.20103116]
[1759291673857,4.80445853,208.14,208.08,4.02285377]
[1759291674061,4.80445853,208.14,208.09,36.68103116]
[1759291674353,4.80445853,208.14,208.1,1.20090757]
[1759291674530,4.80445853,208.14,208.09,35.48]
[1759291674531,4.80445853,208.14,208.09,50.19241347]
[1759291674849,0.82,208.2,208.1,5.22375256]
[1759291675054,16.81156635,208.19,208.11,38.70089879]
[1759291675362,16.81156635,208.19,208.12,35.48]
[1759291676350,16.81156635,208.19,208.11,37.5]
[1759291676531,0.72,208.18,208.12,35.46]
[1759291677249,4.80376615,208.17,208.12,35.46]
[1759291677964,16.81318153,208.17,208.12,35.46]
[1759291678255,17.53318153,208.17,208.13,35.42]
[1759291678751,4.80376615,208.17,208.13,35.42]
[1759291679362,16.81185474,208.19,208.13,35.42]
[1759291682634,0.72,208.18,208.13,35.42]
[1759291682836,0.72,208.17,208.13,35.42]
[1759291683334,4.80330467,208.19,208.13,35.42]
[1759291685156,0.72,208.18,208.14,35.34]
[1759291685356,0.72,208.17,208.14,35.34]
[1759291686346,0.72,208.17,208.15,37.46]
[1759291686659,0.72,208.16,208.15,37.46]
[1759291688057,5.52399692,208.16,208.15,37.46]
[1759291690765,5.52399692,208.16,208.14,35.34]
[1759291691163,4.80399692,208.16,208.14,35.34]
[1759291691455,0.72,208.15,208.14,35.34]
[1759291693652,4.80399692,208.16,208.14,35.34]
[1759291694763,4.80330467,208.19,208.14,35.34]
[1759291695143,16.81156635,208.19,208.14,35.34]
[1759291695345,16.81156635,208.19,208.11,28.05559401]
[1759291695650,16.81156635,208.19,208.13,13.59559401]
[1759291696257,16.81156635,208.19,208.14,35.18]
[1759291697268,4.80330467,208.19,208.14,35.18]
[1759291698155,0.72,208.18,208.15,35.14]
[1759291701275,0.72,208.15,208.12,35.12]
[1759291701580,16.81398923,208.16,208.12,35.12]
[1759291701766,17.51398923,208.16,208.12,35.12]
[1759291701955,16.81398923,208.16,208.12,35.12]
[1759291702571,4.80399692,208.16,208.12,35.12]
[1759291702775,4.80399692,208.16,208.11,37.46]
[1759291702776,0.7,208.15,208.11,37.46]
[1759291702980,0.7,208.14,208.11,37.46]
[1759291703164,0.7,208.13,208.12,35.14]
[1759291703347,0.7,208.13,208.11,37.46]
[1759291703552,16.81398923,208.16,208.11,37.46]
[1759291703553,0.7,208.12,208.11,37.46]
[1759291703973,5.50492023,208.12,208.11,37.46]
[1759291704381,17.51722082,208.12,208.02,13.59559401]
[1759291704556,0.7,208.11,208.01,13.59559401]
[1759291704755,0.7,208.1,208.02,55.92]
[1759291704954,0.7,208.1,208.02,70.18303562]
[1759291705474,40.84182201,208.12,208.02,49.38303562]
[1759291705668,16.81722082,208.12,208.04,0.14216157]
[1759291705864,16.81479702,208.15,208.08,20.8]
[1759291706059,16.81479702,208.15,208.09,35.12]
[1759291706375,0.7,208.14,208.09,35.12]
[1759291706683,0.7,208.13,208.09,35.12]
[1759291708286,16.81722082,208.12,208.09,35.12]
[1759291708672,0.7,208.11,208.09,35.12]
[1759291709066,0.7,208.1,208.09,35.12]
[1759291709957,0.7,208.1,208.09,72.58]
[1759291710365,5.50538202,208.1,208.09,37.46]
[1759291710564,5.50538202,208.1,208.09,72.52]
[1759291712382,17.51883708,208.1,208.02,39.02733477]
[1759291712579,0.7,208.09,208.03,3.19809078]
[1759291712794,0.7,208.08,208.04,3.19809078]
[1759291713093,0.7,208.07,208.05,3.19809078]
[1759291713384,0.7,208.06,208.02,14.34675273]
[1759291713593,0.7,208.09,208.03,38.2420082]
[1759291713770,0.7,208.09,208.04,3.2020082]
[1759291713972,0.7,208.08,208.05,3.2020082]
[1759291714171,40.84574721,208.1,208.06,38.2220082]
[1759291714172,0.7,208.07,208.06,38.2220082]
[1759291714372,5.50607487,208.07,208.06,38.2220082]
[1759291715874,5.50607487,208.07,208.0,42.75990844]
[1759291715875,41.55163645,208.07,208.01,3.96429915]
[1759291716073,41.55163645,208.07,207.95,90.81084229]
[1759291716074,0.98432314,208.06,207.98,3.96429915]
[1759291716293,0.7,208.05,207.96,3.96429915]
[1759291716600,17.52368774,208.04,207.98,3.96429915]
[1759291716773,0.7,208.03,207.98,3.96429915]
[1759291716967,0.7,208.02,207.98,3.96429915]
[1759291717170,0.7,208.02,207.99,35.0]
[1759291717384,0.7,208.02,208.0,35.0]
[1759291718287,4.80746117,208.01,208.0,35.0]
[1759291718885,5.50746117,208.01,208.0,35.0]
[1759291719782,17.52611411,208.01,207.97,3.96429915]
[1759291719973,17.52611411,208.01,207.98,37.46]
[1759291719974,0.7,208.0,207.98,37.46]
[1759291720174,4.80792345,207.99,207.98,37.46]
[1759291720375,5.50792345,207.99,207.98,37.46]
[1759291720574,4.80792345,207.99,207.98,37.46]
[1759291720782,5.50792345,207.99,207.98,37.46]
[1759291721183,5.50792345,207.99,207.98,72.42]
[1759291721390,16.82343984,208.05,207.98,72.42]
[1759291721571,16.82343984,208.05,207.98,76.38429915]
[1759291721774,12.01502477,208.08,207.99,13.59559401]
[1759291721991,12.01502477,208.08,208.02,20.8]
[1759291722302,4.80445853,208.14,208.06,20.8]
[1759291722496,4.80445853,208.14,208.07,35.02]
[1759291722698,12.01241147,208.12,208.07,35.02]
[1759291722900,0.7,208.11,208.07,35.02]
[1759291723275,0.7,208.1,208.07,35.02]
[1759291724101,12.01241147,208.12,208.07,35.02]
[1759291724284,4.8058439,208.08,208.03,24.76429915]
[1759291724487,0.7,208.07,208.02,24.76429915]
[1759291724695,0.7,208.07,208.03,35.04]
[1759291725578,16.82045366,208.08,208.03,35.04]
[1759291725973,4.8058439,208.08,208.03,59.80429915]
[1759291726179,4.8058439,208.08,208.04,3.96429915]
[1759291726608,12.01299518,208.11,208.04,3.96429915]
[1759291727799,0.7,208.1,208.04,41.42429915]
[1759291728397,0.7,208.1,208.04,37.46]
[1759291729985,4.80561295,208.09,208.04,37.46]
[1759291730193,17.51964533,208.09,208.04,37.46]
[1759291731519,17.51964533,208.09,208.05,34.98]
[1759291732196,0.7,208.08,208.05,34.98]
[1759291732610,4.80607487,208.07,208.05,34.98]
[1759291733012,5.50607487,208.07,208.05,34.98]
[1759291733514,4.80607487,208.07,208.05,34.98]
[1759291734606,5.46607487,208.07,208.05,34.98]
[1759291736803,4.80607487,208.07,208.05,34.98]
[1759291737124,16.82045366,208.08,208.05,34.98]
[1759291737313,17.48045366,208.08,208.05,34.98]
[1759291737925,0.66,208.07,208.05,34.98]
[1759291738500,0.66,208.07,208.06,37.46]
[1759291739421,17.48126206,208.07,208.04,37.46]
[1759291739718,0.94432314,208.06,207.97,3.96429915]
[1759291739901,0.66,208.05,207.98,37.46]
[1759291740105,0.66,208.04,207.98,37.46]
[1759291740302,0.66,208.03,207.98,37.46]
[1759291741107,0.66,208.02,207.99,34.92]
[1759291741606,16.82287911,208.05,207.99,34.92]
[1759291741806,16.82287911,208.05,207.99,38.88429915]
[1759291742027,17.48287911,208.05,207.99,38.88429915]
[1759291742332,16.82287911,208.05,207.99,38.88429915]
[1759291742528,16.82287911,208.05,208.0,3.96429915]
[1759291742710,0.66,208.04,208.0,3.96429915]
[1759291742917,0.66,208.03,208.01,34.92]
[1759291743715,0.66,208.05,208.01,34.92]
[1759291743912,24.03090577,208.07,208.01,34.92]
[1759291743913,0.66,208.04,208.01,34.92]